[Event "XLII Barbera Open 2019"]
[Site "Barbera"]
[Date "2019.07.06"]
[Round "3.2"]
[White "Rios, Cristhian Camilo"]
[Black "Morales, Jhon Alexander"]
[Result "1/2-1/2"]
[ECO "B07"]
[WhiteElo "2520"]
[BlackElo "2422"]
[Annotator "ChessBase"]
[PlyCount "29"]
[EventDate "2019.07.04"]
[EventType "swiss"]
[EventCountry "ESP"]
[SourceTitle "playchess.com"]
[Source "ChessBase"]
[SourceQuality "1"]
[TimeControl "5400+30"]

1. e4 {[%emt 0:43:01]} d6 {[%emt 0:00:46]} 2. d4 {[%emt 0:00:08]} Nf6 {[%emt 0:00:08]} 3. Nc3 {[%emt 0:00:05]} c6 {[%emt 0:00:05]} 4. g3 {[%emt 0:00:06]} Nbd7 {[%emt 0:00:25]} 5. Bg2 {[%emt 0:00:07]} e5 {[%emt 0:00:05]} 6. Nge2 {[%emt 0:00:04]} Be7 {[%emt 0:03:22]} 7. O-O {[%emt 0:00:19]} b5 {[%emt 0:00:17]} 8. a3 {[%emt 0:00:08]} Bb7 {[%emt 0:00:26]} 9. h3 {[%emt 0:00:13]} h5 {[%emt 0:00:13]} 10. dxe5 {[%emt 0:00:30]} dxe5 {[%emt 0:00:08]} 11. Bg5 {[%emt 0:00:08]} a5 12. Qd2 {[%emt 0:00:33]} Nc5 {[%emt 0:04:58]} 13. Qxd8+ {[%emt 0:15:34]} Bxd8 {[%emt 0:01:14]} 14. Be3 {[%emt 0:01:59]} Ncd7 {[%emt 0:00:38]} 15. f4 {[%emt 0:00:35]} 1/2-1/2

[Event "XLII Barbera Open 2019"]
[Site "Barbera"]
[Date "2019.07.06"]
[Round "3.3"]
[White "Munoz, Miguel"]
[Black "Leon Valdes, Jony Wilson"]
[Result "1/2-1/2"]
[ECO "C06"]
[WhiteElo "2511"]
[BlackElo "2364"]
[Annotator "ChessBase"]
[PlyCount "59"]
[EventDate "2019.07.04"]
[EventType "swiss"]
[EventCountry "ESP"]
[SourceTitle "playchess.com"]
[Source "ChessBase"]
[SourceQuality "1"]
[TimeControl "5400+30"]

1. e4 {[%emt 0:01:24]} e6 {[%emt 0:00:00]} 2. d4 {[%emt 0:00:16]} d5 {[%emt 0:00:00]} 3. Nd2 {[%emt 0:00:13]} Nf6 {[%emt 0:00:00]} 4. e5 {[%emt 0:00:19]} Nfd7 {[%emt 0:00:00]} 5. Bd3 {[%emt 0:00:10]} c5 {[%emt 0:00:00]} 6. c3 {[%emt 0:00:11]} Nc6 {[%emt 0:00:00]} 7. Ne2 {[%emt 0:00:10]} cxd4 {[%emt 0:00:00]} 8. cxd4 {[%emt 0:00:09]} f6 {[%emt 0:00:02]} 9. exf6 {[%emt 0:00:15]} Nxf6 {[%emt 0:00:06]} 10. O-O {[%emt 0:00:10]} Bd6 {[%emt 0:00:02]} 11. f4 {[%emt 0:00:14]} Qb6 {[%emt 0:00:57]} 12. Nf3 {[%emt 0:00:11]} O-O {[%emt 0:00:24]} 13. Kh1 {[%emt 0:00:07]} Bd7 {[%emt 0:00:22]} 14. Nc3 {[%emt 0:00:13]} Rac8 {[%emt 0:00:32]} 15. a3 {[%emt 0:00:28]} Ne7 {[%emt 0:00:20]} 16. Ne5 {[%emt 0:00:42]} Be8 17. Qf3 {[%emt 0:02:53]} Bxe5 {[%emt 0:04:05]} 18. dxe5 {[%emt 0:10:27]} Nd7 {[%emt 0:00:07]} 19. Qh3 {[%emt 0:00:40]} Bg6 {[%emt 0:00:13]} 20. Bxg6 {[%emt 0:01:58]} Nxg6 {[%emt 0:00:12]} 21. Nxd5 {[%emt 0:01:12]} exd5 {[%emt 0:13:47]} 22. Qxd7 {[%emt 0:01:05]} Rcd8 {[%emt 0:00:18]} 23. Qh3 {[%emt 0:00:20]} Nxe5 {[%emt 0:00:40]} 24. Be3 {[%emt 0:01:04]} d4 {[%emt 0:03:41]} 25. Bxd4 {[%emt 0:02:00]} Qxd4 {[%emt 0:05:22]} 26. fxe5 {[%emt 0:00:24]} Rxf1+ {[%emt 0:08:08]} 27. Rxf1 {[%emt 0:00:22]} Qxe5 28. Qb3+ {[%emt 0:11:33]} Qd5 {[%emt 0:00:37]} 29. Qe3 {[%emt 0:00:14]} a6 {[%emt 0:04:41]} 30. h3 {[%emt 0:02:13]} 1/2-1/2

[Event "XLII Barbera Open 2019"]
[Site "Barbera"]
[Date "2019.07.06"]
[Round "3.4"]
[White "Diaz Hernandez, Heriberto"]
[Black "Oliva Castaneda, Kevel"]
[Result "1/2-1/2"]
[ECO "B10"]
[WhiteElo "2353"]
[BlackElo "2467"]
[Annotator "ChessBase"]
[PlyCount "62"]
[EventDate "2019.07.04"]
[EventType "swiss"]
[EventCountry "ESP"]
[SourceTitle "playchess.com"]
[Source "ChessBase"]
[SourceQuality "1"]
[TimeControl "5400+30"]

1. e4 c6 {[%emt 0:00:00]} 2. Nc3 {[%emt 0:00:52]} d5 {[%emt 0:00:00]} 3. Nf3 {[%emt 0:00:05]} Nf6 {[%emt 0:00:00]} 4. e5 {[%emt 0:01:01]} Ne4 {[%emt 0:00:00]} 5. Be2 {[%emt 0:00:14]} Nxc3 {[%emt 0:00:39]} 6. dxc3 {[%emt 0:00:24]} Bg4 {[%emt 0:00:17]} 7. h3 {[%emt 0:00:52]} Bxf3 {[%emt 0:00:04]} 8. Bxf3 {[%emt 0:00:04]} e6 {[%emt 0:00:06]} 9. O-O {[%emt 0:01:30]} Nd7 {[%emt 0:00:05]} 10. Qe2 {[%emt 0:00:52]} Bc5 {[%emt 0:05:43]} 11. Bf4 {[%emt 0:01:20]} O-O {[%emt 0:01:43]} 12. c4 {[%emt 0:06:56]} Nb6 {[%emt 0:04:58]} 13. cxd5 {[%emt 0:00:53]} cxd5 {[%emt 0:00:04]} 14. a4 {[%emt 0:04:38]} a6 {[%emt 0:03:45]} 15. c3 {[%emt 0:03:42]} Be7 {[%emt 0:03:50]} 16. b3 {[%emt 0:03:07]} Bg5 {[%emt 0:04:26]} 17. Bg3 {[%emt 0:37:17]} Qc7 {[%emt 0:05:27]} 18. c4 {[%emt 0:01:57]} dxc4 {[%emt 0:00:22]} 19. a5 {[%emt 0:00:02]} Nd7 {[%emt 0:01:47]} 20. Qxc4 {[%emt 0:00:02]} Qxc4 {[%emt 0:00:10]} 21. bxc4 {[%emt 0:00:03]} Nc5 {[%emt 0:00:19]} 22. Rfb1 {[%emt 0:07:51]} Rab8 {[%emt 0:00:30]} 23. Rb6 {[%emt 0:03:39]} Bd8 {[%emt 0:01:13]} 24. Rbb1 {[%emt 0:02:49]} Bc7 {[%emt 0:01:21]} 25. Bf4 {[%emt 0:00:43]} Rfc8 {[%emt 0:05:21]} 26. Be3 {[%emt 0:06:26]} Bxe5 {[%emt 0:00:19]} 27. Bxc5 {[%emt 0:00:11]} Rxc5 {[%emt 0:00:23]} 28. Ra4 {[%emt 0:00:05]} Rc7 {[%emt 0:06:38]} 29. Rab4 {[%emt 0:00:35]} g6 {[%emt 0:00:39]} 30. Bxb7 {[%emt 0:01:20]} Bc3 {[%emt 0:01:43]} 31. R4b3 {[%emt 0:00:01]} Bxa5 {[%emt 0:03:57]} 1/2-1/2

[Event "XLII Barbera Open 2019"]
[Site "Barbera"]
[Date "2019.07.06"]
[Round "3.5"]
[White "Sturt, Raven"]
[Black "Vehi Bach, Victor Manuel"]
[Result "1-0"]
[ECO "B21"]
[WhiteElo "2429"]
[BlackElo "2339"]
[Annotator "NA"]
[PlyCount "67"]
[EventDate "2019.07.04"]
[EventType "swiss"]
[EventCountry "ESP"]
[SourceTitle "playchess.com"]
[Source "ChessBase"]
[SourceQuality "1"]
[TimeControl "5400+30"]

1. e4 {[%emt 0:00:00]} c5 {[%emt 0:00:00]} 2. d4 {[%emt 0:00:00]} cxd4 {[%emt 0:00:00]} 3. c3 dxc3 {[%emt 0:00:33]} 4. Nxc3 {[%emt 0:00:00]} Nc6 {[%emt 0:00:19]} 5. Nf3 {[%emt 0:00:00]} e6 {[%emt 0:00:14]} 6. Bc4 {[%emt 0:00:00]} a6 {[%emt 0:01:16]} 7. O-O {[%emt 0:00:18]} Nge7 {[%emt 0:00:35]} 8. Bg5 {[%emt 0:00:23]} f6 {[%emt 0:01:01]} 9. Be3 {[%emt 0:00:05]} b5 {[%emt 0:01:10]} 10. Bb3 {[%emt 0:00:09]} Bb7 {[%emt 0:00:34]} 11. Nd2 Na5 {[%emt 0:02:51]} 12. Re1 {[%emt 0:10:33]} g6 {[%emt 0:31:35]} 13. Bc5 {[%emt 0:19:30]} Rc8 {[%emt 0:04:27]} 14. Bd6 {[%emt 0:00:20]} Nec6 {[%emt 0:00:12]} 15. Bxf8 {[%emt 0:13:14]} Kxf8 {[%emt 0:00:10]} 16. Nf3 {[%emt 0:00:07]} Qe7 {[%emt 0:05:39]} 17. e5 {[%emt 0:06:38]} f5 {[%emt 0:01:05]} 18. Qd2 {[%emt 0:00:12]} Kg7 {[%emt 0:00:08]} 19. Rad1 {[%emt 0:06:43]} Rc7 {[%emt 0:00:56]} 20. Qe3 {[%emt 0:01:33]} Nxb3 {[%emt 0:01:00]} 21. axb3 {[%emt 0:00:02]} Nb4 {[%emt 0:03:09]} 22. Nd4 {[%emt 0:06:22]} h6 {[%emt 0:03:18]} 23. Nce2 {[%emt 0:01:14]} Qg5 {[%emt 0:05:32]} 24. Nf4 {[%emt 0:01:03]} Kf7 25. Nxb5 {[%emt 0:11:47]} axb5 {[%emt 0:03:30]} 26. Qb6 {[%emt 0:00:02]} Bxg2 {[%emt 0:14:06]} 27. Qxc7 {[%emt 0:07:27]} Bd5+ {[%emt 0:01:29]} 28. Kf1 {[%emt 0:00:17]} Qxf4 {[%emt 0:00:07]} 29. Qxd7+ {[%emt 0:01:11]} Kf8 30. Qd8+ {[%emt 0:09:55]} Kg7 {[%emt 0:02:32]} 31. Qf6+ {[%emt 0:00:07]} Kg8 {[%emt 0:00:01]} 32. Qxg6+ {[%emt 0:00:07]} Kf8 {[%emt 0:00:06]} 33. Qf6+ {[%emt 0:00:03]} Kg8 {[%emt 0:00:03]} 34. Re3 {[%emt 0:00:24]} 1-0

[Event "XLII Barbera Open 2019"]
[Site "Barbera"]
[Date "2019.07.06"]
[Round "3.6"]
[White "Peralta, Fernando"]
[Black "Meessen, Rudolf"]
[Result "1-0"]
[ECO "A40"]
[WhiteElo "2562"]
[BlackElo "2269"]
[Annotator "ChessBase"]
[PlyCount "53"]
[EventDate "2019.07.04"]
[EventType "swiss"]
[EventCountry "ESP"]
[SourceTitle "playchess.com"]
[Source "ChessBase"]
[SourceQuality "1"]
[TimeControl "5400+30"]

1. d4 {[%emt 0:04:16]} g6 {[%emt 0:00:00]} 2. c4 {[%emt 0:00:40]} Bg7 {[%emt 0:00:00]} 3. Nf3 {[%emt 0:00:38]} d6 {[%emt 0:00:10]} 4. Nc3 {[%emt 0:00:12]} Nc6 {[%emt 0:00:26]} 5. d5 {[%emt 0:00:45]} Ne5 {[%emt 0:00:05]} 6. Nxe5 {[%emt 0:00:44]} Bxe5 {[%emt 0:00:05]} 7. e4 {[%emt 0:00:32]} Nf6 {[%emt 0:01:07]} 8. Bd3 {[%emt 0:00:33]} O-O {[%emt 0:00:32]} 9. Bg5 {[%emt 0:06:14]} c6 {[%emt 0:01:25]} 10. O-O {[%emt 0:01:02]} Qb6 {[%emt 0:13:24]} 11. Qd2 {[%emt 0:01:51]} e6 {[%emt 0:04:31]} 12. Kh1 {[%emt 0:11:19]} exd5 {[%emt 0:02:17]} 13. exd5 {[%emt 0:00:13]} cxd5 {[%emt 0:04:33]} 14. f4 {[%emt 0:04:27]} Bxc3 {[%emt 0:07:06]} 15. bxc3 {[%emt 0:08:43]} Ne4 {[%emt 0:03:53]} 16. Bxe4 {[%emt 0:00:11]} dxe4 {[%emt 0:00:07]} 17. f5 {[%emt 0:00:52]} Bxf5 {[%emt 0:09:27]} 18. Rxf5 {[%emt 0:09:16]} gxf5 {[%emt 0:00:45]} 19. Bf6 {[%emt 0:00:09]} e3 {[%emt 0:00:22]} 20. Qe1 {[%emt 0:00:15]} Rfc8 {[%emt 0:12:28]} 21. Rb1 {[%emt 0:12:55]} Qa6 22. Qxe3 {[%emt 0:16:46]} Qxc4 {[%emt 0:11:46]} 23. Qg5+ {[%emt 0:02:34]} Kf8 24. h3 h6 {[%emt 0:18:32]} 25. Qxh6+ {[%emt 0:01:38]} Ke8 {[%emt 0:00:01]} 26. Rxb7 Rc7 {[%emt 0:00:26]} 27. Rxc7 {[%emt 0:00:52]} 1-0

[Event "XLII Barbera Open 2019"]
[Site "Barbera"]
[Date "2019.07.06"]
[Round "3.7"]
[White "Moskalenko, Viktor"]
[Black "Subramanian, Aditya"]
[Result "1-0"]
[ECO "E28"]
[WhiteElo "2500"]
[BlackElo "2198"]
[Annotator "ChessBase"]
[PlyCount "63"]
[EventDate "2019.07.04"]
[EventType "swiss"]
[EventCountry "ESP"]
[SourceTitle "playchess.com"]
[Source "ChessBase"]
[SourceQuality "1"]
[TimeControl "5400+30"]

1. d4 {[%emt 0:00:00]} Nf6 {[%emt 0:00:00]} 2. c4 {[%emt 0:00:00]} e6 {[%emt 0:00:00]} 3. Nc3 {[%emt 0:00:00]} Bb4 {[%emt 0:00:00]} 4. e3 {[%emt 0:07:25]} O-O {[%emt 0:00:22]} 5. a3 {[%emt 0:00:04]} Bxc3+ {[%emt 0:01:06]} 6. bxc3 {[%emt 0:00:01]} c5 {[%emt 0:02:31]} 7. Bd3 {[%emt 0:00:51]} b6 {[%emt 0:02:41]} 8. e4 {[%emt 0:05:31]} Bb7 {[%emt 0:16:31]} 9. f3 {[%emt 0:03:31]} Nh5 {[%emt 0:06:51]} 10. Nh3 {[%emt 0:11:23]} f5 {[%emt 0:01:55]} 11. O-O {[%emt 0:08:20]} Nc6 {[%emt 0:13:22]} 12. exf5 {[%emt 0:14:34]} exf5 {[%emt 0:01:20]} 13. Bg5 {[%emt 0:03:02]} Qc7 {[%emt 0:02:38]} 14. d5 {[%emt 0:07:53]} Na5 {[%emt 0:05:34]} 15. Be7 {[%emt 0:19:48]} Nf4 {[%emt 0:05:43]} 16. Nxf4 {[%emt 0:01:07]} Qxf4 {[%emt 0:00:16]} 17. Bxf8 {[%emt 0:00:06]} Rxf8 {[%emt 0:00:11]} 18. Qe2 {[%emt 0:01:11]} b5 {[%emt 0:02:31]} 19. cxb5 {[%emt 0:03:31]} c4 {[%emt 0:00:14]} 20. Bc2 {[%emt 0:00:15]} Bxd5 {[%emt 0:00:12]} 21. Rad1 {[%emt 0:04:50]} Be6 {[%emt 0:00:30]} 22. Qd2 {[%emt 0:01:50]} Qe5 {[%emt 0:00:42]} 23. a4 {[%emt 0:00:32]} Nb3 {[%emt 0:01:10]} 24. Qe1 {[%emt 0:01:42]} Qc7 {[%emt 0:01:43]} 25. f4 {[%emt 0:00:52]} Qa5 {[%emt 0:00:43]} 26. g4 {[%emt 0:00:10]} Nc5 {[%emt 0:03:21]} 27. gxf5 {[%emt 0:00:52]} Bxf5 {[%emt 0:00:02]} 28. Bxf5 {[%emt 0:00:16]} Rxf5 {[%emt 0:00:09]} 29. Rd5 {[%emt 0:01:16]} Nd3 {[%emt 0:02:12]} 30. Qe3 {[%emt 0:00:33]} Rf7 {[%emt 0:02:23]} 31. Rxd7 {[%emt 0:00:39]} Qxc3 {[%emt 0:01:02]} 32. Rd8+ {[%emt 0:00:14]} 1-0

[Event "XLII Barbera Open 2019"]
[Site "Barbera"]
[Date "2019.07.06"]
[Round "3.8"]
[White "Berdayes Ason, Dylan Isidro"]
[Black "Singh, S. Vikramjit"]
[Result "1/2-1/2"]
[ECO "B52"]
[WhiteElo "2461"]
[BlackElo "2164"]
[Annotator "RC"]
[PlyCount "123"]
[EventDate "2019.07.04"]
[EventType "swiss"]
[EventCountry "ESP"]
[SourceTitle "playchess.com"]
[Source "ChessBase"]
[SourceQuality "1"]
[TimeControl "5400+30"]

1. e4 {[%emt 0:03:52]} c5 {[%emt 0:00:00]} 2. Nf3 {[%emt 0:00:12]} d6 {[%emt 0:00:00]} 3. Bb5+ {[%emt 0:00:25]} Bd7 {[%emt 0:00:34]} 4. Bxd7+ {[%emt 0:00:03]} Qxd7 {[%emt 0:00:09]} 5. c4 {[%emt 0:00:05]} Nf6 {[%emt 0:00:40]} 6. Nc3 {[%emt 0:00:02]} g6 {[%emt 0:00:27]} 7. d4 {[%emt 0:00:01]} cxd4 {[%emt 0:00:08]} 8. Nxd4 {[%emt 0:00:02]} Bg7 {[%emt 0:00:05]} 9. b3 {[%emt 0:00:28]} Nc6 {[%emt 0:01:07]} 10. Bb2 {[%emt 0:00:04]} O-O {[%emt 0:00:16]} 11. O-O {[%emt 0:00:14]} e6 {[%emt 0:05:01]} 12. Rc1 {[%emt 0:00:03]} Rfd8 {[%emt 0:07:09]} 13. Nxc6 {[%emt 0:09:11]} Qxc6 {[%emt 0:01:59]} 14. f3 {[%emt 0:00:11]} a6 {[%emt 0:11:39]} 15. Qe2 {[%emt 0:01:00]} Rac8 {[%emt 0:03:46]} 16. Rfd1 {[%emt 0:01:41]} Bh6 {[%emt 0:11:27]} 17. Rb1 {[%emt 0:04:26]} Bg7 {[%emt 0:00:56]} 18. Kh1 {[%emt 0:00:53]} Ne8 {[%emt 0:02:19]} 19. Rbc1 {[%emt 0:16:43]} Bh6 {[%emt 0:02:21]} 20. Rb1 {[%emt 0:00:09]} Bg7 {[%emt 0:00:43]} 21. Rd3 {[%emt 0:03:59]} Nc7 {[%emt 0:20:32]} 22. Rbd1 {[%emt 0:00:14]} b5 {[%emt 0:03:32]} 23. cxb5 {[%emt 0:00:06]} Nxb5 {[%emt 0:00:08]} 24. Nxb5 {[%emt 0:00:18]} axb5 {[%emt 0:02:08]} 25. Bxg7 {[%emt 0:00:12]} Kxg7 {[%emt 0:00:08]} 26. Qb2+ {[%emt 0:02:30]} Kg8 {[%emt 0:02:10]} 27. Qf6 {[%emt 0:01:15]} h5 {[%emt 0:05:08]} 28. h4 {[%emt 0:00:40]} Rd7 {[%emt 0:07:53]} 29. Kh2 {[%emt 0:00:34]} Qc7 {[%emt 0:02:03]} 30. Kh3 {[%emt 0:02:03]} Qd8 {[%emt 0:01:02]} 31. Qf4 {[%emt 0:01:58]} Rc6 {[%emt 0:02:07]} 32. Qd2 {[%emt 0:00:29]} Ra6 {[%emt 0:01:24]} 33. Rc1 {[%emt 0:03:00]} Rc7 {[%emt 0:01:00]} 34. Rd1 {[%emt 0:01:40]} Rcc6 {[%emt 0:00:34]} 35. Qe2 {[%emt 0:01:13]} Qf6 {[%emt 0:03:41]} 36. Rd4 {[%emt 0:02:07]} Qe5 {[%emt 0:00:23]} 37. Rb4 {[%emt 0:01:45]} Ra5 {[%emt 0:00:27]} 38. Rbd4 {[%emt 0:01:45]} Rca6 {[%emt 0:00:23]} 39. R4d2 {[%emt 0:00:28]} Ra3 {[%emt 0:02:07]} 40. Rc1 {[%emt 0:00:05]} Kg7 {[%emt 0:00:50]} 41. Rcc2 {[%emt 0:03:55]} Qa1 {[%emt 0:01:03]} 42. Rb2 {[%emt 0:02:27]} Qg1 {[%emt 0:00:28]} 43. Rbc2 {[%emt 0:01:54]} Qa1 {[%emt 0:00:45]} 44. f4 {[%emt 0:03:05]} Qf6 {[%emt 0:00:20]} 45. Qf2 {[%emt 0:02:07]} b4 {[%emt 0:00:25]} 46. Kh2 {[%emt 0:02:29]} R3a5 {[%emt 0:00:39]} 47. Rc4 {[%emt 0:02:02]} Qa1 {[%emt 0:00:23]} 48. Rcc2 {[%emt 0:02:00]} Qf6 {[%emt 0:00:09]} 49. g3 {[%emt 0:01:13]} Qa1 {[%emt 0:00:52]} 50. Qe2 {[%emt 0:02:51]} Qf6 {[%emt 0:00:43]} 51. Kg2 {[%emt 0:00:25]} d5 {[%emt 0:00:12]} 52. exd5 {[%emt 0:02:16]} exd5 {[%emt 0:00:05]} 53. Qe8 {[%emt 0:02:38]} Re6 {[%emt 0:01:11]} 54. Qb8 {[%emt 0:00:02]} Rb6 {[%emt 0:00:35]} 55. Qc7 {[%emt 0:00:19]} Rab5 {[%emt 0:00:20]} 56. Qd7 {[%emt 0:02:18]} Qe6 57. Rc7 {[%emt 0:00:37]} Ra5 {[%emt 0:01:20]} 58. Qxe6 {[%emt 0:04:16]} Rxe6 {[%emt 0:00:01]} 59. Rb7 {[%emt 0:00:11]} Rea6 {[%emt 0:00:14]} 60. Kf3 {[%emt 0:00:16]} Rxa2 {[%emt 0:00:08]} 61. Rxd5 {[%emt 0:00:13]} Rc6 {[%emt 0:01:07]} 62. Rd3 {[%emt 0:04:59]} 1/2-1/2

[Event "XLII Barbera Open 2019"]
[Site "Barbera"]
[Date "2019.07.06"]
[Round "3.9"]
[White "Garcia Ramos, Daniel"]
[Black "Sreeshwan Maralakshikari"]
[Result "0-1"]
[ECO "B12"]
[WhiteElo "2336"]
[BlackElo "2461"]
[Annotator "RC"]
[PlyCount "104"]
[EventDate "2019.07.04"]
[EventType "swiss"]
[EventCountry "ESP"]
[SourceTitle "playchess.com"]
[Source "ChessBase"]
[SourceQuality "1"]
[TimeControl "5400+30"]

1. e4 {[%emt 0:00:00]} c6 {[%emt 0:00:00]} 2. d4 {[%emt 0:00:00]} d5 {[%emt 0:00:00]} 3. e5 {[%emt 0:00:00]} Bf5 {[%emt 0:00:00]} 4. Nf3 {[%emt 0:00:00]} e6 {[%emt 0:00:00]} 5. Be2 {[%emt 0:00:02]} Ne7 {[%emt 0:00:00]} 6. O-O {[%emt 0:00:12]} Nd7 {[%emt 0:00:00]} 7. Nbd2 c5 {[%emt 0:01:07]} 8. c4 {[%emt 0:03:02]} Nc6 {[%emt 0:05:25]} 9. cxd5 {[%emt 0:01:09]} exd5 {[%emt 0:00:04]} 10. dxc5 {[%emt 0:04:23]} Nxc5 {[%emt 0:05:24]} 11. Nb3 {[%emt 0:02:01]} Be7 {[%emt 0:07:56]} 12. Be3 {[%emt 0:02:49]} Nxb3 {[%emt 0:11:12]} 13. Qxb3 {[%emt 0:00:20]} Qd7 {[%emt 0:00:06]} 14. Rfd1 {[%emt 0:09:33]} Be6 {[%emt 0:00:13]} 15. Nd4 {[%emt 0:08:59]} O-O {[%emt 0:06:25]} 16. f4 {[%emt 0:03:07]} Rfc8 {[%emt 0:05:07]} 17. Nxe6 {[%emt 0:08:28]} fxe6 {[%emt 0:00:55]} 18. Bg4 {[%emt 0:00:33]} Kh8 {[%emt 0:01:10]} 19. Rac1 {[%emt 0:08:59]} g6 {[%emt 0:24:08]} 20. a3 {[%emt 0:10:49]} Kg7 {[%emt 0:06:37]} 21. Qd3 {[%emt 0:02:16]} Bd8 {[%emt 0:04:48]} 22. Bh3 {[%emt 0:04:56]} Ne7 {[%emt 0:01:03]} 23. g4 {[%emt 0:02:35]} Rxc1 {[%emt 0:06:56]} 24. Rxc1 {[%emt 0:00:20]} Rc8 {[%emt 0:00:12]} 25. Rf1 {[%emt 0:04:10]} Nc6 {[%emt 0:11:08]} 26. Bg2 {[%emt 0:07:33]} Bb6 {[%emt 0:00:58]} 27. Bxb6 {[%emt 0:00:24]} axb6 {[%emt 0:00:04]} 28. f5 {[%emt 0:00:40]} exf5 {[%emt 0:00:57]} 29. gxf5 {[%emt 0:00:20]} gxf5 {[%emt 0:00:39]} 30. Rxf5 {[%emt 0:05:26]} Rd8 {[%emt 0:00:43]} 31. Rh5 {[%emt 0:03:00]} Kh8 {[%emt 0:01:22]} 32. e6 {[%emt 0:01:13]} Qg7 {[%emt 0:00:08]} 33. Rxd5 {[%emt 0:02:47]} Rxd5 {[%emt 0:00:40]} 34. Qxd5 {[%emt 0:00:05]} Qxb2 {[%emt 0:00:16]} 35. Qd1 {[%emt 0:05:21]} Qg7 {[%emt 0:01:08]} 36. Kh1 {[%emt 0:00:49]} Qc7 {[%emt 0:00:30]} 37. Qa1+ {[%emt 0:01:09]} Ne5 {[%emt 0:00:24]} 38. h3 {[%emt 0:00:25]} Kg7 {[%emt 0:00:17]} 39. Qd4 {[%emt 0:00:18]} Kf6 {[%emt 0:00:18]} 40. Bd5 {[%emt 0:00:34]} b5 {[%emt 0:00:58]} 41. Qh4+ {[%emt 0:00:23]} Kg7 {[%emt 0:00:28]} 42. Qg5+ {[%emt 0:00:11]} Ng6 {[%emt 0:00:26]} 43. Be4 {[%emt 0:00:58]} Qa5 {[%emt 0:00:39]} 44. Bxg6 {[%emt 0:00:36]} Qe1+ {[%emt 0:00:19]} 45. Kg2 {[%emt 0:00:10]} Qe2+ {[%emt 0:00:12]} 46. Kg3 {[%emt 0:00:17]} hxg6 {[%emt 0:00:55]} 47. Qe7+ {[%emt 0:00:12]} Kh6 {[%emt 0:00:12]} 48. Qf8+ {[%emt 0:00:33]} Kh7 {[%emt 0:00:06]} 49. Qf7+ {[%emt 0:00:18]} Kh6 {[%emt 0:00:06]} 50. Kf4 {[%emt 0:01:24]} Qc4+ {[%emt 0:00:22]} 51. Ke5 {[%emt 0:00:05]} Qc5+ {[%emt 0:00:03]} 52. Kf6 {[%emt 0:00:19]} Qg5# {[%emt 0:00:04]} 0-1

[Event "XLII Barbera Open 2019"]
[Site "Barbera"]
[Date "2019.07.06"]
[Round "3.10"]
[White "Ruperez, Miguel"]
[Black "Harikrishnan.A.Ra"]
[Result "1-0"]
[ECO "E12"]
[WhiteElo "2146"]
[BlackElo "2401"]
[Annotator "NA"]
[PlyCount "109"]
[EventDate "2019.07.04"]
[EventType "swiss"]
[EventCountry "ESP"]
[SourceTitle "playchess.com"]
[Source "ChessBase"]
[SourceQuality "1"]
[TimeControl "5400+30"]

1. d4 Nf6 2. c4 e6 3. Nf3 b6 4. Bf4 Bb7 5. e3 Be7 6. Nc3 Nh5 7. Bd3 Nxf4 8. exf4 g6 9. d5 Bf6 10. O-O Bxc3 11. bxc3 Qf6 12. Qd2 O-O 13. Be4 Na6 14. Ne5 Nc5 15. Bf3 d6 16. Ng4 Qg7 17. Ne3 e5 18. f5 Bc8 19. Qc2 Kh8 20. Bg4 Bd7 21. f3 Rae8 22. fxg6 Ba4 23. Qd2 hxg6 24. Bh3 f5 25. g3 Bd7 26. Nc2 f4 27. Bxd7 Qxd7 28. Nb4 Qh3 29. gxf4 Rxf4 30. Nd3 Nxd3 31. Qxd3 Ref8 32. Qe3 Rg4+ 33. Kf2 e4 34. Ke1 exf3 35. Kd2 Rg2+ 36. Rf2 Rxf2+ 37. Qxf2 Qg2 38. Rf1 Rf4 39. Kd3 Qxf2 40. Rxf2 Kg7 41. Ke3 Rxc4 42. Kxf3 Rxc3+ 43. Ke4 Rc4+ 44. Kd3 Rc1 45. Ke4 a5 46. Rg2 Kf6 47. Rf2+ Ke7 48. Rg2 Rc4+ 49. Kd3 Rh4 50. Rc2 Kd7 51. Rg2 Kc8 52. Kc3 Kb7 53. Rxg6 Rxh2 54. a4 Rh3+ 55. Kc4 1-0

[Event "XLII Barbera Open 2019"]
[Site "Barbera"]
[Date "2019.07.07"]
[Round "4.1"]
[White "Harutyunian, Tigran K."]
[Black "Sturt, Raven"]
[Result "1-0"]
[ECO "A30"]
[WhiteElo "2539"]
[BlackElo "2429"]
[Annotator "ChessBase"]
[PlyCount "98"]
[EventDate "2019.07.04"]
[EventType "swiss"]
[EventCountry "ESP"]
[SourceTitle "playchess.com"]
[Source "ChessBase"]
[SourceQuality "1"]
[TimeControl "5400+30"]

1. c4 {[%emt 0:00:00]} c5 {[%emt 0:00:00]} 2. Nf3 {[%emt 0:00:02]} Nc6 {[%emt 0:00:00]} 3. Nc3 {[%emt 0:00:37]} g6 {[%emt 0:00:00]} 4. e3 {[%emt 0:03:53]} Nf6 {[%emt 0:00:47]} 5. d4 {[%emt 0:00:09]} cxd4 {[%emt 0:00:06]} 6. exd4 {[%emt 0:00:07]} d5 {[%emt 0:00:04]} 7. cxd5 {[%emt 0:00:18]} Nxd5 {[%emt 0:00:05]} 8. Qb3 {[%emt 0:00:10]} Nxc3 {[%emt 0:00:16]} 9. Bc4 {[%emt 0:00:33]} e6 {[%emt 0:00:04]} 10. bxc3 {[%emt 0:00:32]} Bd7 {[%emt 0:00:25]} 11. Bd3 {[%emt 0:02:11]} Na5 {[%emt 0:00:23]} 12. Qc2 {[%emt 0:01:28]} Bg7 {[%emt 0:00:20]} 13. Ba3 {[%emt 0:02:18]} Bf8 {[%emt 0:00:06]} 14. Bxf8 {[%emt 0:01:56]} Kxf8 {[%emt 0:00:05]} 15. h4 {[%emt 0:03:08]} Bc6 {[%emt 0:14:46]} 16. Be4 {[%emt 0:02:24]} Rc8 {[%emt 0:08:56]} 17. h5 {[%emt 0:02:52]} Bxe4 {[%emt 0:10:38]} 18. Qxe4 {[%emt 0:00:12]} Qd5 {[%emt 0:00:18]} 19. Qf4 {[%emt 0:07:31]} Ke7 {[%emt 0:01:00]} 20. O-O {[%emt 0:05:33]} Qf5 {[%emt 0:14:17]} 21. Qh4+ {[%emt 0:07:59]} f6 {[%emt 0:04:05]} 22. Rfe1 {[%emt 0:08:13]} Qxh5 {[%emt 0:07:57]} 23. Qg3 {[%emt 0:06:17]} Rxc3 {[%emt 0:14:05]} 24. d5 {[%emt 0:02:57]} e5 {[%emt 0:01:09]} 25. Qf4 {[%emt 0:01:14]} Rc4 {[%emt 0:02:27]} 26. Qd2 {[%emt 0:01:38]} b6 {[%emt 0:02:33]} 27. d6+ {[%emt 0:00:36]} Ke6 {[%emt 0:02:47]} 28. Rad1 {[%emt 0:01:21]} Rc5 {[%emt 0:00:45]} 29. d7 {[%emt 0:05:44]} Rd8 {[%emt 0:00:04]} 30. Re4 {[%emt 0:07:45]} g5 {[%emt 0:02:32]} 31. g4 {[%emt 0:03:59]} Qh3 {[%emt 0:06:54]} 32. Qd3 {[%emt 0:05:10]} Ke7 {[%emt 0:00:09]} 33. Nxe5 {[%emt 0:01:26]} Qxd3 {[%emt 0:00:04]} 34. Nxd3+ {[%emt 0:00:07]} Kf7 {[%emt 0:00:02]} 35. Nxc5 {[%emt 0:00:10]} bxc5 {[%emt 0:00:02]} 36. Rd6 {[%emt 0:02:43]} Nb7 {[%emt 0:00:52]} 37. Rd5 {[%emt 0:01:07]} a5 {[%emt 0:01:56]} 38. Kf1 {[%emt 0:00:30]} a4 {[%emt 0:00:25]} 39. a3 {[%emt 0:01:19]} Ra8 {[%emt 0:01:08]} 40. Ke2 {[%emt 0:00:27]} Rd8 {[%emt 0:00:31]} 41. Kd3 {[%emt 0:00:47]} Na5 {[%emt 0:00:06]} 42. Re8 {[%emt 0:01:22]} Rxe8 {[%emt 0:00:04]} 43. dxe8=Q+ {[%emt 0:00:07]} Kxe8 {[%emt 0:00:02]} 44. Rxc5 {[%emt 0:00:14]} Nb7 {[%emt 0:00:10]} 45. Rc7 {[%emt 0:01:51]} Nd6 {[%emt 0:00:04]} 46. Rxh7 {[%emt 0:00:07]} Nb5 {[%emt 0:00:04]} 47. Rb7 {[%emt 0:00:27]} Nxa3 {[%emt 0:00:10]} 48. Kc3 {[%emt 0:00:12]} Kd8 {[%emt 0:00:08]} 49. Rb4 {[%emt 0:00:13]} Ke8 1-0